bitfinex/quotes_SOLUSD_20250617
["timestamp","ask_amount","ask_price","bid_price","bid_amount"]
[1750147619366,32.22296325,152.65,152.61,6.55229425]
[1750147619565,32.22296325,152.65,152.61,25.20194311]
[1750147619946,5.28296325,152.65,152.61,30.48490636]
[1750147620538,5.28296325,152.65,152.61,25.20194311]
[1750147622181,26.94,152.66,152.61,25.20194311]
[1750147622378,32.22296325,152.66,152.61,32.13730636]
[1750147622545,5.28296325,152.66,152.61,32.13730636]
[1750147622744,32.22296325,152.67,152.62,18.64964886]
[1750147622982,5.28296325,152.66,152.62,23.93261211]
[1750147623185,5.28296325,152.65,152.62,18.64964886]
[1750147623365,4.8676677,152.7,152.62,23.93261211]
[1750147623366,5.28296325,152.66,152.62,23.93261211]
[1750147623849,32.22296325,152.67,152.63,11.83475516]
[1750147624243,5.28296325,152.67,152.63,17.69475516]
[1750147624439,5.28296325,152.72,152.64,18.64964886]
[1750147624680,5.28296325,152.72,152.68,5.28296325]
[1750147624987,32.22296325,152.72,152.67,23.93261211]
[1750147625279,5.28296325,152.71,152.67,23.93261211]
[1750147625983,5.28296325,152.71,152.67,30.4822756]
[1750147626663,5.28296325,152.71,152.67,6.54966349]
[1750147626891,5.28296325,152.68,152.66,1.6524]
[1750147627769,5.28296325,152.69,152.66,8.20284023]
[1750147628371,26.94,152.72,152.67,23.93261211]
[1750147628372,32.22296325,152.72,152.67,23.93261211]
[1750147628581,5.28296325,152.72,152.68,5.28296325]
[1750147629188,5.28296325,152.72,152.67,23.93261211]
[1750147630666,5.28296325,152.72,152.68,6.54964631]
[1750147630895,5.28296325,152.7,152.66,32.93536325]
[1750147631195,5.28296325,152.7,152.66,8.20280411]
[1750147631396,5.28296325,152.71,152.66,13.48576736]
[1750147632191,6.54807926,152.72,152.66,13.48576736]
[1750147632486,5.28296325,152.71,152.67,5.28296325]
[1750147632693,5.28296325,152.71,152.67,11.83266851]
[1750147632988,5.28296325,152.7,152.67,6.54970526]
[1750147637600,5.28296325,152.69,152.66,14.04273217]
[1750147637898,5.28296325,152.68,152.66,14.04273217]
[1750147638893,5.28296325,152.68,152.66,7.4924]
[1750147639099,12.59178111,152.72,152.66,5.84]
[1750147639100,5.28296325,152.67,152.66,5.84]
[1750147640567,32.20296325,152.69,152.66,12.39050438]
[1750147641377,5.28296325,152.68,152.66,12.39050438]
[1750147641582,32.20296325,152.69,152.66,12.39050438]
[1750147641789,26.92,152.69,152.66,12.39050438]
[1750147642288,32.20296325,152.69,152.66,12.39050438]
[1750147642775,5.28296325,152.69,152.66,12.39050438]
[1750147643178,149.1,152.75,152.68,6.81666325]
[1750147643378,39.52098875,152.74,152.7,5.28296325]
[1750147643579,32.20296325,152.74,152.69,5.28296325]
[1750147643770,5.28296325,152.73,152.69,5.28296325]
[1750147644475,5.28296325,152.73,152.69,11.83176284]
[1750147644668,5.28296325,152.75,152.7,5.28296325]
[1750147644874,2.44014885,152.74,152.71,5.28296325]
[1750147645286,2.44042744,152.76,152.73,5.28296325]
[1750147645487,5.28296325,152.77,152.73,5.28296325]
[1750147645797,34.64363403,152.77,152.73,5.28296325]
[1750147646103,26.92,152.77,152.73,5.28296325]
[1750147648692,32.20296325,152.8,152.77,6.54578778]
[1750147648887,32.20296325,152.8,152.76,11.82904987]
[1750147649093,32.20296325,152.8,152.76,6.54608662]
[1750147649691,32.20296325,152.8,152.75,30.47909439]
[1750147650379,5.28296325,152.79,152.75,30.47909439]
[1750147652100,26.9,152.8,152.75,30.47909439]
[1750147652304,5.28296325,152.79,152.75,30.47909439]
[1750147654621,5.28296325,152.76,152.7,1.5886]
[1750147654789,5.28296325,152.73,152.71,5.84]
[1750147655791,26.9,152.75,152.71,5.84]
[1750147655792,5.28296325,152.72,152.71,5.84]
[1750147657088,11.8308941,152.72,152.66,32.55403197]
[1750147657291,11.8308941,152.72,152.66,13.90438311]
[1750147657292,5.28296325,152.69,152.66,13.90438311]
[1750147657524,26.9,152.71,152.66,13.90438311]
[1750147657525,5.28296325,152.68,152.66,13.90438311]
[1750147659597,5.28296325,152.69,152.66,13.90438311]
[1750147660815,5.28296325,152.7,152.66,13.90438311]
[1750147661390,5.28296325,152.69,152.66,13.90438311]
[1750147661904,26.9,152.71,152.66,12.39038311]
[1750147662207,5.28296325,152.69,152.66,12.39038311]
[1750147662420,5.28296325,152.7,152.66,17.67334636]
[1750147662625,5.28296325,152.7,152.66,12.39038311]
[1750147663121,5.28296325,152.69,152.66,12.39038311]
[1750147665213,5.28296325,152.7,152.66,12.39038311]
[1750147665408,32.18296325,152.71,152.66,34.04960733]
[1750147665725,32.18296325,152.71,152.67,23.93261211]
[1750147665917,5.28296325,152.71,152.67,23.93261211]
[1750147666117,5.28296325,152.71,152.67,18.64964886]
[1750147667221,5.28296325,152.71,152.68,5.82]
[1750147667422,5.28296325,152.71,152.69,6.54921736]
[1750147671332,26.9,152.72,152.69,6.54921736]
[1750147671522,5.28296325,152.71,152.69,6.54921736]
[1750147673439,5.28296325,152.7,152.69,6.54921736]
[1750147674220,5.28296325,152.71,152.69,6.54921736]
[1750147674436,32.54719493,152.74,152.69,6.54921736]
[1750147674635,5.28296325,152.71,152.69,6.54921736]
[1750147675435,5.28296325,152.74,152.7,18.64964886]
[1750147675733,156.1006,152.79,152.74,18.64964886]
[1750147675734,5.28296325,152.79,152.74,18.64964886]
[1750147676041,26.0,152.8,152.74,23.93261211]
[1750147676209,5.28296325,152.79,152.74,23.93261211]
[1750147676409,32.18296325,152.79,152.75,5.28296325]
[1750147676641,32.18296325,152.79,152.75,11.10296325]
[1750147676848,32.18296325,152.79,152.75,5.82]
[1750147677147,32.18296325,152.79,152.75,12.36629399]
[1750147677844,5.28296325,152.79,152.75,12.36629399]
[1750147678035,32.16296325,152.79,152.75,12.36629399]
[1750147678336,5.28296325,152.79,152.75,12.36629399]
[1750147678640,32.16296325,152.79,152.75,12.36629399]
[1750147679938,5.28296325,152.79,152.75,12.36629399]
[1750147680242,5.28296325,152.78,152.75,12.36629399]
[1750147681421,5.28296325,152.77,152.75,12.36663576]
[1750147682847,26.88,152.79,152.75,12.36663576]
[1750147683143,10.0,152.86,152.75,12.36663576]
[1750147683144,5.28296325,152.84,152.78,5.28296325]
[1750147683341,5.28296325,152.85,152.81,5.28296325]
[1750147683524,32.16296325,152.85,152.79,18.64964886]
[1750147683727,5.28296325,152.83,152.79,5.28296325]
[1750147683952,5.28296325,152.83,152.77,0.28432314]
[1750147684157,5.28296325,152.82,152.78,5.28296325]
[1750147684330,5.28296325,152.82,152.76,18.64964886]
[1750147684648,5.28296325,152.82,152.78,5.28296325]
[1750147684850,5.28296325,152.82,152.78,11.82790386]
[1750147685058,5.28296325,152.82,152.78,6.54494061]
[1750147685223,5.28296325,152.82,152.78,11.82790386]
[1750147685422,5.28296325,152.81,152.78,6.54494061]
[1750147685726,6.54326056,152.83,152.78,6.54494061]
[1750147686049,5.28296325,152.81,152.78,6.54494061]
[1750147686637,5.28296325,152.82,152.78,5.28296325]
[1750147686847,5.28296325,152.82,152.77,11.82875103]
[1750147688264,26.88,152.83,152.78,5.28296325]
[1750147688437,5.28296325,152.82,152.78,5.28296325]
[1750147690540,5.28296325,152.82,152.78,11.82803643]
[1750147690767,5.28296325,152.79,152.76,25.19569747]
[1750147690951,5.28296325,152.77,152.75,7.3806]
[1750147691159,5.28296325,152.76,152.75,7.3806]
[1750147692338,5.28296325,152.76,152.75,13.92724484]
[1750147693760,5.28296325,152.76,152.75,5.8]
[1750147695540,11.82917953,152.76,152.75,5.8]
[1750147696253,11.82917953,152.76,152.71,8.08862697]
[1750147696436,5.28296325,152.72,152.71,8.08862697]
[1750147696642,5.28296325,152.72,152.71,1.5404]
[1750147698543,5.28296325,152.72,152.7,5.8]
[1750147698762,5.28296325,152.71,152.7,12.34878847]
[1750147699950,5.28296325,152.71,152.7,5.8]
[1750147701664,32.14296325,152.71,152.7,5.8]
[1750147702066,38.69132288,152.71,152.7,5.8]
[1750147702373,32.14296325,152.71,152.7,5.8]
[1750147704046,38.69132288,152.71,152.7,5.8]
[1750147705770,38.69132288,152.71,152.64,18.64964886]
[1750147705771,38.69132288,152.71,152.65,5.8]
[1750147705947,5.28296325,152.67,152.65,5.8]
[1750147706656,5.28296325,152.66,152.65,5.8]
[1750147707171,26.86,152.68,152.65,5.8]
[1750147707475,5.28296325,152.66,152.65,5.8]
[1750147710882,26.0,152.71,152.65,5.8]
[1750147711059,32.14296325,152.71,152.66,23.93261211]
[1750147711371,6.54578778,152.77,152.69,5.28296325]
[1750147711551,5.28296325,152.73,152.7,18.64964886]
[1750147711747,5.28296325,152.72,152.69,1.5057]
[1750147711949,5.28296325,152.71,152.69,1.5057]
[1750147712686,26.86,152.72,152.69,1.5057]
[1750147713382,26.86,152.72,152.69,6.78866325]
[1750147713570,26.86,152.72,152.69,13.33768247]
[1750147713767,26.86,152.72,152.69,8.05471922]
[1750147714158,26.86,152.72,152.69,1.5057]
[1750147714494,26.86,152.72,152.69,8.05489641]
[1750147714859,5.28296325,152.73,152.69,8.05489641]
[1750147715191,26.86,152.72,152.69,8.05489641]
[1750147715885,32.14296325,152.72,152.69,8.05489641]
[1750147718055,32.14296325,152.72,152.67,26.0]
[1750147718056,5.28296325,152.7,152.67,26.0]
[1750147718388,5.28296325,152.71,152.67,32.54974396]
[1750147720655,26.86,152.72,152.67,37.83270721]
[1750147720856,32.14296325,152.72,152.67,37.83270721]
[1750147721477,32.14296325,152.72,152.68,23.93261211]
[1750147721687,6.54493095,152.79,152.71,5.28296325]
[1750147721853,5.28296325,152.75,152.71,5.28296325]
[1750147722055,32.14296325,152.75,152.71,11.08296325]
[1750147722367,58.14296325,152.76,152.71,12.62486325]
[1750147722680,5.28296325,152.75,152.71,12.62486325]
[1750147723582,5.28296325,152.75,152.72,6.54793085]
[1750147724467,5.28296325,152.74,152.72,6.54793085]
[1750147726252,5.28296325,152.76,152.72,6.54793085]
[1750147726489,5.28296325,152.75,152.72,6.54793085]
[1750147732597,32.12296325,152.76,152.72,6.54793085]
[1750147732763,5.28296325,152.78,152.73,23.93261211]
[1750147732969,26.84,152.77,152.73,23.93261211]
[1750147733178,32.12296325,152.78,152.73,23.93261211]
[1750147733474,5.28296325,152.78,152.73,23.93261211]
[1750147733673,32.12296325,152.78,152.73,23.93261211]
[1750147733873,32.12296325,152.8,152.75,5.28296325]
[1750147734991,32.12296325,152.8,152.76,6.54621628]
[1750147736165,32.54338397,152.83,152.77,23.93261211]
[1750147736370,5.28296325,152.81,152.77,25.48251211]
[1750147736763,158.51727065,152.87,152.78,5.28296325]
[1750147736962,7.31370442,152.86,152.81,5.28296325]
[1750147737191,2.43804471,152.85,152.81,5.28296325]
[1750147737394,11.41690692,152.88,152.84,5.28296325]
[1750147737395,7.31370442,152.87,152.84,5.28296325]
[1750147737563,2.43804471,152.87,152.85,5.28296325]
[1750147737764,2.43804471,152.87,152.84,23.93261211]
[1750147737979,32.12296325,152.88,152.84,23.93261211]
[1750147738165,5.28296325,152.88,152.84,23.93261211]
[1750147738366,34.56095569,152.89,152.84,23.93261211]
[1750147738574,5.28296325,152.88,152.84,23.93261211]
[1750147738985,5.28296325,152.88,152.84,30.47523278]
[1750147740572,11.82417595,152.88,152.83,8.10869931]
[1750147740786,5.28296325,152.87,152.83,13.39166256]
[1750147741099,5.28296325,152.85,152.83,1.5656]
[1750147741875,6.54107796,152.88,152.8,24.44964886]
[1750147741876,32.10296325,152.84,152.8,24.44964886]
[1750147742117,26.82,152.84,152.8,29.73261211]
[1750147742283,32.10296325,152.84,152.8,29.73261211]
[1750147742982,32.10296325,152.84,152.8,36.2767093]
[1750147744283,26.0,152.89,152.82,5.28296325]
[1750147744603,5.28296325,152.86,152.83,18.64964886]
[1750147744778,5.28296325,152.85,152.81,18.64964886]
[1750147745272,26.82,152.88,152.81,25.19370051]
[1750147745273,5.28296325,152.84,152.81,25.19370051]
[1750147746802,5.28296325,152.84,152.81,18.64964886]
[1750147747301,5.28296325,152.85,152.81,25.19372146]
[1750147747505,5.28296325,152.86,152.81,30.47668471]
[1750147748218,5.28296325,152.86,152.83,18.64964886]
[1750147748500,32.10296325,152.87,152.83,25.19274466]
[1750147749015,32.10296325,152.87,152.83,30.47570791]
[1750147749210,5.28296325,152.86,152.83,25.19274466]
[1750147750078,5.28296325,152.87,152.83,30.47570791]
[1750147750612,5.28296325,152.86,152.83,25.19274466]
[1750147750789,5.28296325,152.87,152.83,30.47570791]
[1750147751789,5.28296325,152.86,152.83,25.19274466]
[1750147752483,26.82,152.88,152.83,25.19274466]
[1750147752687,5.28296325,152.87,152.83,30.47570791]
[1750147753419,26.0,152.91,152.85,5.28296325]
[1750147753712,5.28296325,152.89,152.85,5.28296325]
[1750147753881,5.28296325,152.88,152.85,18.64964886]
[1750147754810,5.28296325,152.86,152.82,25.47746539]
[1750147755129,5.28296325,152.85,152.82,18.64964886]
[1750147755283,5.28296325,152.84,152.82,18.64964886]
[1750147755486,5.28296325,152.84,152.81,18.64964886]
[1750147756596,5.28296325,152.84,152.81,25.19371503]
[1750147757014,5.28296325,152.84,152.81,18.64964886]
[1750147757324,26.0,152.88,152.8,11.08296325]
[1750147757494,5.28296325,152.85,152.81,23.93261211]
[1750147757810,26.0,152.88,152.83,5.28296325]
[1750147757998,32.08296325,152.87,152.83,5.28296325]
[1750147758199,5.28296325,152.86,152.82,5.56728639]
[1750147759318,5.28296325,152.86,152.83,6.54321795]
[1750147760416,5.28296325,152.85,152.82,6.54358974]
[1750147760589,5.28296325,152.84,152.81,18.64964886]
[1750147761524,5.28296325,152.84,152.81,25.19356566]
[1750147761708,5.28296325,152.83,152.81,18.64964886]
[1750147762022,5.28296325,152.83,152.8,12.34442159]
[1750147762529,6.5424106,152.85,152.8,5.8]
[1750147762530,5.28296325,152.81,152.8,5.8]
[1750147763295,11.82703759,152.81,152.8,5.8]
[1750147763517,11.82703759,152.81,152.75,13.94036717]
[1750147763824,5.28296325,152.77,152.75,13.94036717]
[1750147764226,5.28296325,152.78,152.75,13.94036717]
[1750147764730,5.28296325,152.77,152.75,13.94036717]
[1750147764897,5.28296325,152.78,152.75,13.94036717]
[1750147765222,5.28296325,152.78,152.76,18.64964886]
[1750147765430,5.28296325,152.79,152.76,18.64964886]
[1750147765830,5.28296325,152.78,152.76,18.64964886]
[1750147766014,5.28296325,152.79,152.76,18.64964886]
[1750147766403,5.28296325,152.79,152.76,25.19553754]
[1750147766807,5.28296325,152.78,152.76,25.19553754]
[1750147767299,5.28296325,152.77,152.75,13.94040621]
[1750147767501,5.28296325,152.77,152.68,5.78]
[1750147767502,5.28296325,152.76,152.68,5.78]
[1750147767716,5.28296325,152.72,152.68,59.98672535]
[1750147767915,5.28296325,152.73,152.7,18.933972]
[1750147768222,26.8,152.77,152.7,18.933972]
[1750147768223,5.28296325,152.74,152.7,5.56728639]
[1750147768425,5.28296325,152.75,152.72,18.64964886]
[1750147768608,5.28296325,152.75,152.72,25.19751959]
[1750147769130,26.8,152.77,152.72,30.48048284]
[1750147769302,32.08296325,152.77,152.73,0.28432314]
[1750147769509,32.08296325,152.77,152.74,18.64964886]
[1750147769905,5.28296325,152.77,152.74,24.42964886]
[1750147770526,5.28296325,152.76,152.74,24.42964886]
[1750147771213,5.28296325,152.75,152.69,11.06296325]
[1750147771409,26.8,152.76,152.69,11.06296325]
[1750147771410,26.8,152.76,152.7,24.21693525]
[1750147771604,5.28296325,152.75,152.71,5.28296325]
[1750147772028,5.28296325,152.74,152.7,24.21693525]
[1750147772225,5.28296325,152.74,152.71,6.54835963]
[1750147773829,21.64425764,152.8,152.73,5.56728639]
[1750147773830,5.28296325,152.77,152.73,5.56728639]
[1750147774136,5.28296325,152.77,152.74,18.64964886]
[1750147774523,32.10296325,152.78,152.73,0.28432314]
[1750147774723,5.28296325,152.77,152.73,0.28432314]
[1750147774931,5.28296325,152.77,152.74,18.64964886]
[1750147775126,26.82,152.78,152.71,29.25765871]
[1750147775127,5.28296325,152.75,152.71,5.78]
[1750147775322,5.28296325,152.72,152.71,5.78]
[1750147778828,5.28296325,152.72,152.68,8.14778044]
[1750147779016,5.28296325,152.71,152.68,13.92778044]
[1750147780651,5.28296325,152.69,152.63,5.28296325]
[1750147780839,5.28296325,152.68,152.64,5.28296325]
[1750147781039,5.28296325,152.68,152.65,0.28432314]
[1750147781751,26.82,152.7,152.66,18.64964886]
[1750147781924,5.28296325,152.68,152.66,18.64964886]
[1750147782419,5.28296325,152.68,152.65,6.55079032]
[1750147782621,5.28296325,152.67,152.65,6.55079032]
[1750147782837,5.28296325,152.67,152.65,18.64964886]
[1750147783247,5.28296325,152.67,152.64,0.28432314]
[1750147783653,5.28296325,152.68,152.65,25.20058236]
[1750147783947,5.28296325,152.68,152.65,18.64964886]
[1750147784152,26.0,152.73,152.66,23.93261211]
[1750147784456,5.28296325,152.7,152.66,23.93261211]
[1750147784628,5.28296325,152.7,152.66,0.28432314]
[1750147784825,5.28296325,152.7,152.66,5.56728639]
[1750147785352,26.0,152.73,152.67,6.55007532]
[1750147785531,5.28296325,152.71,152.68,18.64964886]
[1750147785858,26.84,152.72,152.63,6.55144179]
[1750147786029,26.84,152.72,152.64,5.28296325]
[1750147786229,5.28296325,152.68,152.65,18.64964886]
[1750147786634,5.28296325,152.69,152.65,18.64964886]
[1750147787224,5.28296325,152.69,152.66,6.55050438]
[1750147788526,5.28296325,152.68,152.66,6.55050438]
[1750147788926,5.28296325,152.67,152.65,25.20050176]
[1750147789636,5.28296325,152.68,152.65,25.20050176]
[1750147792069,5.28296325,152.69,152.65,30.48346501]
[1750147792223,26.0,152.73,152.68,18.64964886]
[1750147792429,5.28296325,152.72,152.68,18.64964886]
[1750147793331,5.28296325,152.72,152.68,25.19902253]
[1750147793929,5.28296325,152.72,152.68,30.48198578]
[1750147794550,5.28296325,152.72,152.69,5.78]
[1750147794946,5.28296325,152.72,152.69,12.32912662]
[1750147795449,5.28296325,152.7,152.69,5.78]
[1750147795753,5.28296325,152.71,152.69,5.78]
[1750147795928,26.86,152.73,152.69,5.78]
[1750147796130,155.97402314,152.78,152.7,5.28296325]
[1750147796131,6.54578778,152.77,152.7,5.28296325]
[1750147796329,5.28296325,152.75,152.71,5.28296325]
[1750147796547,32.16296325,152.76,152.71,6.88976325]
[1750147796758,5.28296325,152.75,152.71,6.88976325]
[1750147796967,5.28296325,152.72,152.69,5.78]
[1750147797262,6.54664484,152.75,152.69,5.78]
[1750147797263,5.28296325,152.71,152.69,5.78]
[1750147798731,5.28296325,152.72,152.69,12.32918179]
[1750147799336,5.28296325,152.7,152.61,22.9342769]
[1750147799659,5.28296325,152.67,152.64,18.64964886]
[1750147800561,5.28296325,152.67,152.64,24.42964886]
[1750147801159,5.28296325,152.66,152.64,24.42964886]
[1750147801652,5.28296325,152.67,152.64,30.98087688]
[1750147802243,5.28296325,152.68,152.64,36.26384013]
[1750147803259,0.3588,152.74,152.67,5.28296325]
[1750147803463,5.28296325,152.68,152.64,5.78]
[1750147803754,32.18296325,152.68,152.64,12.33132948]
[1750147803957,26.0,152.72,152.64,12.33132948]
[1750147804169,6.54664484,152.75,152.68,23.93261211]
[1750147804336,5.28296325,152.72,152.68,18.64964886]
[1750147804732,5.28296325,152.71,152.68,18.64964886]
[1750147805155,5.28296325,152.72,152.68,18.64964886]
[1750147805351,5.28296325,152.71,152.68,25.19890864]
[1750147807138,5.28296325,152.7,152.68,18.64964886]
[1750147807338,5.28296325,152.69,152.67,6.54990796]
[1750147807751,6.54757362,152.73,152.67,6.54990796]
[1750147807947,5.28296325,152.7,152.67,6.54990796]
[1750147808155,5.28296325,152.71,152.67,6.54990796]
[1750147808763,5.28296325,152.72,152.68,18.64964886]
[1750147809140,5.28296325,152.71,152.68,18.64964886]
[1750147809655,5.28296325,152.71,152.68,25.19893954]
[1750147812771,5.28296325,152.72,152.68,30.48190279]
[1750147813254,5.28296325,152.72,152.69,5.86]
[1750147813451,5.28296325,152.71,152.69,5.86]
[1750147813844,5.28296325,152.7,152.69,5.86]
[1750147814159,5.28296325,152.71,152.69,5.86]
[1750147814357,5.28296325,152.72,152.7,6.54878847]
[1750147815082,5.28296325,152.75,152.71,23.93261211]
[1750147815361,5.28296325,152.76,152.72,5.28296325]
[1750147815568,5.28296325,152.76,152.71,23.93261211]
[1750147816151,5.28296325,152.76,152.71,18.64964886]
[1750147816362,5.28296325,152.76,152.72,6.54793085]
[1750147818268,5.28296325,152.76,152.73,18.64964886]
[1750147818473,5.28296325,152.77,152.73,18.64964886]
[1750147819254,5.28296325,152.76,152.74,6.54707345]
[1750147820358,5.28296325,152.75,152.74,6.54707345]
[1750147822987,5.28296325,152.76,152.74,6.54707345]
[1750147824556,5.28296325,152.75,152.72,6.5475493]
[1750147824757,8.98405354,152.77,152.7,25.19843733]
[1750147824971,5.28296325,152.72,152.7,25.19843733]
[1750147825273,5.28296325,152.73,152.7,25.19843733]
[1750147825872,5.28296325,152.74,152.72,6.54793085]
[1750147827183,5.28296325,152.74,152.71,25.19800849]
[1750147827358,5.28296325,152.73,152.71,6.54835963]
[1750147828354,5.28296325,152.74,152.71,6.54835963]
[1750147830960,5.28296325,152.72,152.71,6.54835963]
[1750147831766,5.28296325,152.73,152.71,6.54835963]
[1750147832079,5.28296325,152.72,152.69,5.86]
[1750147832253,5.28296325,152.7,152.69,5.86]
[1750147834688,33.42773556,152.73,152.69,5.86]
[1750147834855,5.28296325,152.72,152.69,12.4090811]
[1750147835671,5.28296325,152.71,152.69,12.4090811]
[1750147837386,5.28296325,152.72,152.69,12.4090811]
[1750147844088,6.54683353,152.75,152.71,5.28296325]
[1750147844089,5.28296325,152.75,152.71,5.28296325]
[1750147844271,5.28296325,152.75,152.73,6.54750212]
[1750147844477,5.28296325,152.77,152.73,6.54750212]
[1750147844790,5.28296325,152.76,152.73,6.54750212]
[1750147845757,5.28296325,152.75,152.73,6.54750212]
[1750147847060,5.28296325,152.76,152.73,6.54750212]
[1750147847464,5.28296325,152.75,152.73,6.54750212]
[1750147848193,5.28296325,152.75,152.72,25.19741615]
[1750147849569,5.28296325,152.74,152.7,1.5888]
[1750147849785,5.28296325,152.73,152.7,1.5888]
[1750147850608,5.28296325,152.71,152.69,24.50964886]
[1750147850777,5.28296325,152.71,152.69,5.86]
[1750147851403,5.28296325,152.7,152.69,5.86]
[1750147854173,4.88333534,152.75,152.69,17.69218061]
[1750147854381,5.28296325,152.75,152.71,5.28296325]
[1750147854784,7.72580421,152.75,152.71,5.28296325]
[1750147855104,5.28296325,152.75,152.71,5.28296325]
[1750147855299,5.28296325,152.75,152.72,6.54793085]
[1750147855687,5.28296325,152.74,152.72,6.54793085]
[1750147857290,5.28296325,152.74,152.71,25.19800849]
[1750147860682,5.28296325,152.72,152.69,5.86]
[1750147860902,5.28296325,152.71,152.69,5.86]
[1750147861777,5.28296325,152.7,152.69,5.86]
[1750147861989,4.88727425,152.74,152.69,5.86]
[1750147862197,11.43412331,152.75,152.7,5.28296325]
[1750147862398,7.72621233,152.74,152.69,11.14296325]
[1750147862609,5.28296325,152.73,152.69,11.14296325]
[1750147863488,5.28296325,152.73,152.69,17.69203206]
[1750147863882,32.12296325,152.76,152.71,5.28296325]
[1750147864304,10.1743619,152.76,152.71,5.28296325]
[1750147864508,5.28296325,152.75,152.71,5.28296325]
[1750147865281,5.28296325,152.75,152.72,6.54793085]
[1750147868403,22.54501228,152.79,152.72,11.8308941]
[1750147868706,5.28296325,152.77,152.72,11.8308941]
[1750147869211,5.28296325,152.76,152.72,11.8308941]
[1750147872303,6.54537395,152.78,152.72,11.8308941]
[1750147872498,5.28296325,152.76,152.72,11.8308941]
[1750147874592,5.28296325,152.75,152.72,18.64964886]
[1750147876220,5.28296325,152.75,152.73,6.54750212]
[1750147878001,15.99989634,152.79,152.74,23.93261211]
[1750147878202,15.99989634,152.79,152.76,5.28296325]
[1750147878519,15.99989634,152.79,152.77,11.06296325]
[1750147878709,15.99989634,152.79,152.77,5.78]
[1750147879295,15.99989634,152.79,152.78,5.28296325]
[1750147880111,15.99989634,152.79,152.78,11.82832259]
[1750147880503,15.99989634,152.79,152.78,6.54535934]
[1750147884909,15.99989634,152.79,152.78,30.76229459]
[1750147890126,42.81989634,152.79,152.78,5.78]
[1750147890431,42.81989634,152.79,152.78,11.06296325]
[1750147891645,42.81989634,152.79,152.78,17.60832259]
[1750147892250,42.81989634,152.79,152.78,5.78]
[1750147892540,42.81989634,152.79,152.76,6.54604024]
[1750147892541,10.0,152.75,152.73,5.78]
[1750147892716,26.82,152.74,152.73,5.78]
[1750147892918,42.10296325,152.74,152.73,5.78]
[1750147895644,42.10296325,152.74,152.73,12.32750212]
[1750147896741,42.10296325,152.74,152.73,5.78]
[1750147897235,6.54582502,152.77,152.73,12.32750212]
[1750147897236,10.0,152.77,152.73,12.32750212]
[1750147897435,36.82,152.76,152.73,12.32750212]
[1750147897630,42.10296325,152.76,152.73,12.32750212]
[1750147899449,10.0,152.76,152.73,12.32750212]
[1750147899651,26.82,152.75,152.73,12.32750212]
[1750147900557,26.82,152.74,152.73,12.32750212]
[1750147901538,15.28296325,152.76,152.73,12.32750212]
[1750147901736,26.82,152.74,152.73,12.32750212]
[1750147901939,32.10296325,152.74,152.73,12.32750212]
[1750147902137,42.10296325,152.74,152.73,12.32750212]
[1750147902539,36.82,152.74,152.73,12.32750212]
[1750147908661,42.10296325,152.74,152.73,12.32750212]
[1750147913144,36.82,152.74,152.73,12.32750212]
[1750147913351,42.10296325,152.74,152.73,12.32750212]
[1750147918468,42.10296325,152.74,152.73,12.32750212]
[1750147920556,42.10296325,152.74,152.73,5.78]
[1750147922756,10.0,152.69,152.68,5.78]
[1750147922958,42.10296325,152.69,152.68,5.78]
[1750147923278,36.82,152.69,152.68,5.78]
[1750147923580,42.10296325,152.69,152.68,5.78]
[1750147924450,42.10296325,152.69,152.68,12.32964631]
[1750147924653,42.10296325,152.69,152.68,5.78]
[1750147926563,36.82,152.69,152.68,5.78]
[1750147926767,42.10296325,152.69,152.68,5.78]
[1750147930587,10.0,152.7,152.68,12.32964631]
[1750147930887,10.0,152.71,152.7,6.54878847]
[1750147931091,36.82,152.71,152.7,6.54878847]
[1750147931475,26.82,152.71,152.7,6.54878847]
[1750147931682,36.82,152.71,152.7,6.54878847]
[1750147932286,36.82,152.71,152.7,11.83175172]
[1750147932663,10.0,152.71,152.7,11.83175172]
[1750147932859,36.82,152.71,152.7,11.83175172]
[1750147934204,36.82,152.71,152.7,6.54878847]
[1750147934383,10.0,152.71,152.7,6.54878847]
[1750147934701,36.82,152.71,152.7,6.54878847]
[1750147934901,36.82,152.71,152.69,6.54910292]
[1750147935100,36.82,152.71,152.69,11.83206617]
[1750147935284,10.0,152.74,152.7,5.28296325]
[1750147935483,36.82,152.73,152.71,5.28296325]
[1750147935690,26.82,152.72,152.71,5.28296325]
[1750147935904,26.82,152.72,152.71,11.83132288]
[1750147936107,10.0,152.73,152.71,11.83132288]
[1750147936285,26.82,152.72,152.71,11.83132288]
[1750147936804,36.82,152.72,152.71,6.54835963]
[1750147937704,36.82,152.72,152.71,12.32835963]
[1750147939493,10.0,152.76,152.71,33.98222196]
[1750147939807,10.0,152.78,152.75,5.28296325]